[Event "Early-Titled-Tuesday-Blitz-October-17-2023"]
[Site "Chess.com"]
[Date "2023.10.17"]
[Round "11"]
[White "Mystery2007"]
[Black "ChesscularGodofchess"]
[Result "1-0"]
[WhiteElo "2474"]
[BlackElo "2236"]
[TimeControl "180+1"]
[EndTime "10:09:31 PDT"]
[Termination "Mystery2007 won on time"]

1. Nf3 {[%clk 0:03:00.9]} 1... c5 {[%clk 0:02:56]} 2. e4 {[%clk 0:03:00]} 2...
d6 {[%clk 0:02:55.5]} 3. d4 {[%clk 0:02:59.3]} 3... cxd4 {[%clk 0:02:56.4]} 4.
Nxd4 {[%clk 0:03:00.1]} 4... Nf6 {[%clk 0:02:56.6]} 5. Nc3 {[%clk 0:03:00.1]}
5... Nc6 {[%clk 0:02:56.7]} 6. Be3 {[%clk 0:02:55.2]} 6... e5 {[%clk 0:02:49.9]}
7. Nf3 {[%clk 0:02:43.9]} 7... Be6 {[%clk 0:02:35.3]} 8. h3 {[%clk 0:02:40.5]}
8... h6 {[%clk 0:02:30.3]} 9. Be2 {[%clk 0:02:31.4]} 9... d5 {[%clk 0:02:25.2]}
10. exd5 {[%clk 0:02:30.9]} 10... Nxd5 {[%clk 0:02:26.1]} 11. Nxd5 {[%clk
0:02:30.6]} 11... Qxd5 {[%clk 0:02:26.8]} 12. Qxd5 {[%clk 0:02:26.1]} 12... Bxd5
{[%clk 0:02:27.7]} 13. O-O {[%clk 0:02:26]} 13... O-O-O {[%clk 0:02:20.9]} 14.
Rfd1 {[%clk 0:02:16.6]} 14... Be7 {[%clk 0:02:10.9]} 15. a3 {[%clk 0:02:09.2]}
15... Be4 {[%clk 0:01:58.1]} 16. Rac1 {[%clk 0:01:49.7]} 16... f5 {[%clk
0:01:55.9]} 17. b4 {[%clk 0:01:26.1]} 17... a6 {[%clk 0:01:55.2]} 18. c4 {[%clk
0:01:20.4]} 18... Rxd1+ {[%clk 0:01:41.9]} 19. Rxd1 {[%clk 0:01:18.6]} 19... Rd8
{[%clk 0:01:30.4]} 20. Rxd8+ {[%clk 0:01:16.3]} 20... Bxd8 {[%clk 0:01:30.9]}
21. Nd2 {[%clk 0:01:10.4]} 21... Bc2 {[%clk 0:01:24.2]} 22. Bc5 {[%clk
0:01:06.6]} 22... Bf6 {[%clk 0:01:18.5]} 23. Bh5 {[%clk 0:01:04.8]} 23... e4
{[%clk 0:01:11.5]} 24. Bg6 {[%clk 0:01:02.3]} 24... e3 {[%clk 0:00:48.9]} 25.
fxe3 {[%clk 0:00:48.1]} 25... Bb2 {[%clk 0:00:45.3]} 26. b5 {[%clk 0:00:29.2]}
26... Ne5 {[%clk 0:00:35.7]} 27. Bh7 {[%clk 0:00:27.9]} 27... Bc3 {[%clk
0:00:24]} 28. Bd4 {[%clk 0:00:17.2]} 28... Bxd2 {[%clk 0:00:18.9]} 29. Bxe5
{[%clk 0:00:17]} 29... Bxe3+ {[%clk 0:00:19.3]} 30. Kh2 {[%clk 0:00:17.1]} 30...
axb5 {[%clk 0:00:18.2]} 31. cxb5 {[%clk 0:00:16.7]} 31... Bc5 {[%clk 0:00:16.5]}
32. Bb2 {[%clk 0:00:15.5]} 1-0

[Event "Early-Titled-Tuesday-Blitz-October-17-2023"]
[Site "Chess.com"]
[Date "2023.10.17"]
[Round "11"]
[White "BasilSmash"]
[Black "GMKrikor"]
[Result "0-1"]
[WhiteElo "2634"]
[BlackElo "2828"]
[TimeControl "180+1"]
[EndTime "10:09:43 PDT"]
[Termination "GMKrikor won on time"]

1. e4 {[%clk 0:03:00.9]} 1... e6 {[%clk 0:02:59.5]} 2. d3 {[%clk 0:02:55.8]}
2... d5 {[%clk 0:02:59.8]} 3. Qe2 {[%clk 0:02:55.9]} 3... Be7 {[%clk 0:02:56.9]}
4. Nf3 {[%clk 0:02:55.4]} 4... c5 {[%clk 0:02:57.5]} 5. g3 {[%clk 0:02:55.5]}
5... Nc6 {[%clk 0:02:49.6]} 6. Bg2 {[%clk 0:02:55.2]} 6... Nf6 {[%clk
0:02:48.9]} 7. O-O {[%clk 0:02:55]} 7... b6 {[%clk 0:02:49.2]} 8. e5 {[%clk
0:02:55.2]} 8... Nd7 {[%clk 0:02:49.1]} 9. c4 {[%clk 0:02:53.9]} 9... Bb7 {[%clk
0:02:31.8]} 10. h4 {[%clk 0:02:48]} 10... h6 {[%clk 0:02:23.5]} 11. h5 {[%clk
0:02:45.9]} 11... d4 {[%clk 0:02:15.1]} 12. Bf4 {[%clk 0:02:41.9]} 12... g5
{[%clk 0:02:13.2]} 13. hxg6 {[%clk 0:02:41.1]} 13... fxg6 {[%clk 0:02:14.1]} 14.
g4 {[%clk 0:02:41.4]} 14... g5 {[%clk 0:02:11.4]} 15. Bg3 {[%clk 0:02:41.4]}
15... Nf8 {[%clk 0:02:12.2]} 16. Nbd2 {[%clk 0:02:37.5]} 16... Ng6 {[%clk
0:02:12.3]} 17. Ne4 {[%clk 0:02:36.1]} 17... O-O {[%clk 0:02:07.5]} 18. Nd6
{[%clk 0:02:26.1]} 18... Bxd6 {[%clk 0:02:04]} 19. exd6 {[%clk 0:02:27]} 19...
Qf6 {[%clk 0:02:03.3]} 20. Rae1 {[%clk 0:02:21.4]} 20... Rae8 {[%clk 0:01:46.3]}
21. Ne5 {[%clk 0:02:20.8]} 21... Ncxe5 {[%clk 0:01:37.5]} 22. Bxe5 {[%clk
0:02:17.4]} 22... Qf7 {[%clk 0:01:25.6]} 23. Bg3 {[%clk 0:02:06.3]} 23... e5
{[%clk 0:01:13.2]} 24. Bxb7 {[%clk 0:01:38.5]} 24... Qxb7 {[%clk 0:01:14.1]} 25.
Qe4 {[%clk 0:01:38.4]} 25... Qxe4 {[%clk 0:01:10.6]} 26. Rxe4 {[%clk 0:01:39.3]}
26... Kg7 {[%clk 0:00:36.8]} 27. Kg2 {[%clk 0:00:35.6]} 27... Re6 {[%clk
0:00:35.6]} 28. a3 {[%clk 0:00:24.5]} 28... Rd8 {[%clk 0:00:34.5]} 29. b4 {[%clk
0:00:19.6]} 29... Rdxd6 {[%clk 0:00:31.5]} 30. Rb1 {[%clk 0:00:19.2]} 30... Rc6
{[%clk 0:00:30.4]} 31. Re2 {[%clk 0:00:16]} 31... Kf6 {[%clk 0:00:20.7]} 32. a4
{[%clk 0:00:13.8]} 32... cxb4 {[%clk 0:00:18.5]} 33. Rxb4 {[%clk 0:00:13.4]}
33... Rc5 {[%clk 0:00:18.9]} 34. Rb5 {[%clk 0:00:12.5]} 34... Nf4+ {[%clk
0:00:12.1]} 35. Bxf4 {[%clk 0:00:12.3]} 35... exf4 {[%clk 0:00:12.4]} 36. Rxe6+
{[%clk 0:00:06]} 36... Kxe6 {[%clk 0:00:13.3]} 37. Rb1 {[%clk 0:00:02.9]} 37...
Ra5 {[%clk 0:00:12.2]} 0-1

[Event "Early-Titled-Tuesday-Blitz-October-17-2023"]
[Site "Chess.com"]
[Date "2023.10.17"]
[Round "11"]
[White "Sanyura"]
[Black "Kirill_Klukin"]
[Result "0-1"]
[WhiteElo "2549"]
[BlackElo "2681"]
[TimeControl "180+1"]
[EndTime "10:09:43 PDT"]
[Termination "Kirill_Klukin won on time"]

1. Nf3 {[%clk 0:03:00.9]} 1... Nf6 {[%clk 0:02:58.6]} 2. g3 {[%clk 0:03:00.5]}
2... d5 {[%clk 0:02:58.5]} 3. Bg2 {[%clk 0:03:01.4]} 3... e6 {[%clk 0:02:59]} 4.
O-O {[%clk 0:03:02.1]} 4... Be7 {[%clk 0:02:59.6]} 5. d4 {[%clk 0:03:02.7]} 5...
O-O {[%clk 0:02:59.9]} 6. c4 {[%clk 0:03:03.6]} 6... c6 {[%clk 0:03:00.4]} 7.
Nc3 {[%clk 0:03:02.7]} 7... b6 {[%clk 0:03:00.7]} 8. Qc2 {[%clk 0:02:51]} 8...
Bb7 {[%clk 0:03:00.2]} 9. e4 {[%clk 0:02:48.9]} 9... a5 {[%clk 0:03:00.3]} 10.
Re1 {[%clk 0:02:35.4]} 10... Na6 {[%clk 0:02:59]} 11. a3 {[%clk 0:02:33.5]}
11... h6 {[%clk 0:02:43.9]} 12. Bf4 {[%clk 0:02:24.7]} 12... dxe4 {[%clk
0:02:22.8]} 13. Nxe4 {[%clk 0:02:23.8]} 13... c5 {[%clk 0:02:23.2]} 14. Ne5
{[%clk 0:01:24.7]} 14... Nxe4 {[%clk 0:02:01.5]} 15. Bxe4 {[%clk 0:01:24.9]}
15... Bxe4 {[%clk 0:02:02]} 16. Qxe4 {[%clk 0:01:25.8]} 16... cxd4 {[%clk
0:01:50]} 17. Nc6 {[%clk 0:01:23.2]} 17... Qd7 {[%clk 0:01:50.4]} 18. Rad1
{[%clk 0:01:22.1]} 18... Bf6 {[%clk 0:01:48.7]} 19. Be5 {[%clk 0:00:43.3]} 19...
Nc5 {[%clk 0:01:41.6]} 20. Rxd4 {[%clk 0:00:41.8]} 20... Nxe4 {[%clk 0:01:16.7]}
21. Rxd7 {[%clk 0:00:40.3]} 21... Nc5 {[%clk 0:01:17.4]} 22. Rd2 {[%clk
0:00:21.3]} 22... Rfc8 {[%clk 0:01:17.3]} 23. Bxf6 {[%clk 0:00:07.6]} 23... Rxc6
{[%clk 0:01:17.3]} 24. Be5 {[%clk 0:00:06.2]} 24... a4 {[%clk 0:01:16.5]} 25.
Red1 {[%clk 0:00:04.5]} 25... f6 {[%clk 0:01:02.8]} 26. Bc3 {[%clk 0:00:04.1]}
26... Ne4 {[%clk 0:01:02.4]} 27. Rd8+ {[%clk 0:00:04.6]} 27... Rxd8 {[%clk
0:01:02.7]} 28. Rxd8+ {[%clk 0:00:05.5]} 28... Kh7 {[%clk 0:01:03.4]} 29. Bd4
{[%clk 0:00:04.6]} 29... Nd6 {[%clk 0:00:46.9]} 30. Rd7 {[%clk 0:00:03.5]} 30...
e5 {[%clk 0:00:43.7]} 31. Bxb6 {[%clk 0:00:03.4]} 31... Nxc4 {[%clk 0:00:44.1]}
32. Bd8 {[%clk 0:00:01.2]} 32... Nxb2 {[%clk 0:00:44.1]} 33. Be7 {[%clk
0:00:01.4]} 33... Nc4 {[%clk 0:00:43.6]} 34. Bf8 {[%clk 0:00:01.8]} 34... Kg6
{[%clk 0:00:36.8]} 35. Rxg7+ {[%clk 0:00:01.4]} 35... Kf5 {[%clk 0:00:37.4]} 36.
h3 {[%clk 0:00:01.9]} 36... h5 {[%clk 0:00:36.9]} 37. Ra7 {[%clk 0:00:02.5]}
37... Nd2 {[%clk 0:00:28]} 38. Bb4 {[%clk 0:00:02.9]} 38... Nf3+ {[%clk
0:00:27.8]} 39. Kg2 {[%clk 0:00:03.6]} 39... e4 {[%clk 0:00:28.4]} 40. Ra5+
{[%clk 0:00:04]} 40... Kg6 {[%clk 0:00:29]} 41. g4 {[%clk 0:00:04.5]} 41... h4
{[%clk 0:00:29]} 42. g5 {[%clk 0:00:03.6]} 42... Rc1 {[%clk 0:00:28.6]} 0-1

[Event "Early-Titled-Tuesday-Blitz-October-17-2023"]
[Site "Chess.com"]
[Date "2023.10.17"]
[Round "11"]
[White "salomez"]
[Black "Emp3rador"]
[Result "1-0"]
[WhiteElo "2366"]
[BlackElo "2523"]
[TimeControl "180+1"]
[EndTime "10:09:45 PDT"]
[Termination "salomez won by resignation"]

1. d4 {[%clk 0:03:00.9]} 1... d5 {[%clk 0:03:00]} 2. Nc3 {[%clk 0:02:59.4]} 2...
Nf6 {[%clk 0:02:58.8]} 3. Bf4 {[%clk 0:02:59.5]} 3... Bf5 {[%clk 0:02:57.2]} 4.
f3 {[%clk 0:02:57.1]} 4... e6 {[%clk 0:02:55.9]} 5. e3 {[%clk 0:02:49.2]} 5...
Nbd7 {[%clk 0:02:51.3]} 6. g4 {[%clk 0:02:48.8]} 6... Bg6 {[%clk 0:02:51.2]} 7.
h4 {[%clk 0:02:48.2]} 7... h5 {[%clk 0:02:51.3]} 8. g5 {[%clk 0:02:47.7]} 8...
Ng8 {[%clk 0:02:51.7]} 9. Nh3 {[%clk 0:02:44.4]} 9... Bb4 {[%clk 0:02:50.9]} 10.
Bd3 {[%clk 0:02:43.8]} 10... Ne7 {[%clk 0:02:50.8]} 11. Qd2 {[%clk 0:02:32]}
11... c5 {[%clk 0:02:49.4]} 12. O-O {[%clk 0:02:30.1]} 12... Bf5 {[%clk
0:02:45.6]} 13. Kh2 {[%clk 0:02:24.9]} 13... Rc8 {[%clk 0:02:40.1]} 14. Bd6
{[%clk 0:02:18.1]} 14... Bxd3 {[%clk 0:02:24.4]} 15. cxd3 {[%clk 0:02:16.9]}
15... Nf5 {[%clk 0:02:13.6]} 16. Bxc5 {[%clk 0:02:04.8]} 16... Nxc5 {[%clk
0:02:05.7]} 17. dxc5 {[%clk 0:02:04.7]} 17... Bxc5 {[%clk 0:02:04.3]} 18. e4
{[%clk 0:01:14.5]} 18... Nxh4 {[%clk 0:01:44.2]} 19. exd5 {[%clk 0:01:05.5]}
19... exd5 {[%clk 0:01:43.7]} 20. Qe1+ {[%clk 0:01:02.4]} 20... Kf8 {[%clk
0:01:34.8]} 21. Qxh4 {[%clk 0:01:03.3]} 21... Qb6 {[%clk 0:01:25.6]} 22. Rab1
{[%clk 0:00:43.5]} 22... Bd4 {[%clk 0:01:14.7]} 23. Nxd5 {[%clk 0:00:39.1]}
23... Qd6+ {[%clk 0:01:11.8]} 24. Nhf4 {[%clk 0:00:28.6]} 24... Rc2+ {[%clk
0:00:46.2]} 25. Kh1 {[%clk 0:00:28.5]} 25... g6 {[%clk 0:00:32.5]} 26. Qe1
{[%clk 0:00:26.7]} 26... Be5 {[%clk 0:00:23.5]} 27. Qe4 {[%clk 0:00:26.5]} 27...
h4 {[%clk 0:00:17.5]} 28. Rfe1 {[%clk 0:00:26.3]} 28... Bxf4 {[%clk 0:00:13.6]}
29. Nxf4 {[%clk 0:00:27.2]} 29... h3 {[%clk 0:00:13.7]} 30. Qe5 {[%clk 0:00:18]}
30... Qxe5 {[%clk 0:00:12.8]} 31. Rxe5 {[%clk 0:00:18.2]} 31... Rh4 {[%clk
0:00:13.4]} 32. Re4 {[%clk 0:00:17]} 32... h2 {[%clk 0:00:12.1]} 33. Nxg6+
{[%clk 0:00:17]} 33... fxg6 {[%clk 0:00:11.8]} 34. Rxh4 {[%clk 0:00:17.9]} 34...
Kf7 {[%clk 0:00:11.9]} 35. Rxh2 {[%clk 0:00:17.9]} 35... Rc6 {[%clk 0:00:12.2]}
36. Rd2 {[%clk 0:00:17.2]} 36... Ke6 {[%clk 0:00:12.8]} 37. d4 {[%clk
0:00:17.6]} 37... Kd5 {[%clk 0:00:13.5]} 38. Re1 {[%clk 0:00:17.1]} 38... Rc8
{[%clk 0:00:14.1]} 39. Re5+ {[%clk 0:00:17]} 39... Kd6 {[%clk 0:00:15]} 40. Re4
{[%clk 0:00:16.6]} 40... Rf8 {[%clk 0:00:15.5]} 41. Kg2 {[%clk 0:00:16.2]} 41...
Kd5 {[%clk 0:00:15.7]} 42. Re5+ {[%clk 0:00:16.6]} 42... Kd6 {[%clk 0:00:16.1]}
43. Kg3 {[%clk 0:00:16.8]} 43... Rc8 {[%clk 0:00:16.3]} 44. f4 {[%clk 0:00:17]}
44... Rc1 {[%clk 0:00:16.5]} 45. d5 {[%clk 0:00:17.2]} 45... b5 {[%clk
0:00:16.1]} 46. Re6+ {[%clk 0:00:17.5]} 1-0

[Event "Early-Titled-Tuesday-Blitz-October-17-2023"]
[Site "Chess.com"]
[Date "2023.10.17"]
[Round "11"]
[White "Rosh1610"]
[Black "balachess2006"]
[Result "0-1"]
[WhiteElo "2442"]
[BlackElo "2600"]
[TimeControl "180+1"]
[EndTime "10:09:48 PDT"]
[Termination "balachess2006 won on time"]

1. e4 {[%clk 0:02:58.9]} 1... c5 {[%clk 0:03:00]} 2. Nf3 {[%clk 0:02:57.4]} 2...
Nc6 {[%clk 0:03:00]} 3. d4 {[%clk 0:02:51.3]} 3... cxd4 {[%clk 0:03:00.9]} 4.
Nxd4 {[%clk 0:02:51.9]} 4... Nf6 {[%clk 0:02:57.6]} 5. Nc3 {[%clk 0:02:51.4]}
5... d6 {[%clk 0:02:57]} 6. Bc4 {[%clk 0:02:49.9]} 6... Qb6 {[%clk 0:02:56.6]}
7. Be3 {[%clk 0:02:40.7]} 7... Qxb2 {[%clk 0:02:24.5]} 8. Ndb5 {[%clk
0:02:37.5]} 8... Qb4 {[%clk 0:02:22.7]} 9. Bd3 {[%clk 0:02:29.1]} 9... Qa5
{[%clk 0:02:18.6]} 10. Bd2 {[%clk 0:02:17.6]} 10... Qd8 {[%clk 0:02:16.5]} 11.
O-O {[%clk 0:02:15.7]} 11... a6 {[%clk 0:02:14.6]} 12. Na3 {[%clk 0:02:11]}
12... b5 {[%clk 0:02:14.5]} 13. Nd5 {[%clk 0:02:10.6]} 13... e6 {[%clk
0:02:13.3]} 14. Nxf6+ {[%clk 0:02:07.9]} 14... gxf6 {[%clk 0:02:14.2]} 15. c4
{[%clk 0:02:07.7]} 15... b4 {[%clk 0:02:13.6]} 16. Nc2 {[%clk 0:02:00.3]} 16...
a5 {[%clk 0:02:13.7]} 17. f4 {[%clk 0:01:46.6]} 17... Rg8 {[%clk 0:02:08.1]} 18.
Ne3 {[%clk 0:01:37.3]} 18... Qb6 {[%clk 0:02:03.6]} 19. Kh1 {[%clk 0:01:34]}
19... Bb7 {[%clk 0:02:02.7]} 20. f5 {[%clk 0:01:32.4]} 20... Ne5 {[%clk
0:02:02.6]} 21. Bc2 {[%clk 0:01:30.7]} 21... Be7 {[%clk 0:02:00.3]} 22. a3
{[%clk 0:01:29.5]} 22... bxa3 {[%clk 0:01:52.6]} 23. Rxa3 {[%clk 0:01:23.3]}
23... Bc6 {[%clk 0:01:52.5]} 24. fxe6 {[%clk 0:01:19.1]} 24... fxe6 {[%clk
0:01:52.9]} 25. Qh5+ {[%clk 0:01:13]} 25... Kd7 {[%clk 0:01:53.2]} 26. Qh4
{[%clk 0:01:12.2]} 26... f5 {[%clk 0:01:45.9]} 27. Qe1 {[%clk 0:01:03.1]} 27...
fxe4 {[%clk 0:01:45.2]} 28. Bxa5 {[%clk 0:00:58.4]} 28... Qd4 {[%clk 0:01:34.5]}
29. Bc3 {[%clk 0:00:53.5]} 29... Qc5 {[%clk 0:01:34.6]} 30. Rb3 {[%clk 0:00:51]}
30... Ra2 {[%clk 0:01:28.4]} 31. Bb1 {[%clk 0:00:47.8]} 31... Raxg2 {[%clk
0:01:25.5]} 32. Nxg2 {[%clk 0:00:39.9]} 32... e3 {[%clk 0:01:26.4]} 33. Rb2
{[%clk 0:00:36.9]} 33... Nf3 {[%clk 0:01:09.8]} 34. Rxf3 {[%clk 0:00:13.6]}
34... Bxf3 {[%clk 0:01:05.9]} 35. Qf1 {[%clk 0:00:13.9]} 35... Qh5 {[%clk
0:00:47.3]} 36. Bd3 {[%clk 0:00:13.6]} 36... Bh4 {[%clk 0:00:35.9]} 37. c5
{[%clk 0:00:04.3]} 37... Bg3 {[%clk 0:00:31.7]} 38. c6+ {[%clk 0:00:01.8]} 38...
Bxc6 {[%clk 0:00:25.6]} 39. Qg1 {[%clk 0:00:01.2]} 39... Bf2 {[%clk 0:00:23.9]}
0-1

[Event "Early-Titled-Tuesday-Blitz-October-17-2023"]
[Site "Chess.com"]
[Date "2023.10.17"]
[Round "11"]
[White "Eagle_2019"]
[Black "Mikhail_Golubev"]
[Result "0-1"]
[WhiteElo "2677"]
[BlackElo "2586"]
[TimeControl "180+1"]
[EndTime "10:09:51 PDT"]
[Termination "Mikhail_Golubev won by resignation"]

1. d4 {[%clk 0:03:00.9]} 1... Nf6 {[%clk 0:02:59.6]} 2. Nf3 {[%clk 0:02:59]}
2... d6 {[%clk 0:02:58.3]} 3. g3 {[%clk 0:02:58]} 3... g6 {[%clk 0:02:58.1]} 4.
Bg2 {[%clk 0:02:58.1]} 4... Bg7 {[%clk 0:02:58.7]} 5. O-O {[%clk 0:02:58.7]}
5... O-O {[%clk 0:02:59]} 6. c4 {[%clk 0:02:59.1]} 6... Nbd7 {[%clk 0:02:59.2]}
7. Nc3 {[%clk 0:02:59.3]} 7... e5 {[%clk 0:02:59.3]} 8. e4 {[%clk 0:02:59.8]}
8... Re8 {[%clk 0:02:59]} 9. h3 {[%clk 0:02:58.9]} 9... exd4 {[%clk 0:02:54.8]}
10. Nxd4 {[%clk 0:02:59]} 10... a6 {[%clk 0:02:55.4]} 11. Be3 {[%clk 0:02:48.3]}
11... Rb8 {[%clk 0:02:50.2]} 12. Qc2 {[%clk 0:02:39.3]} 12... c5 {[%clk
0:02:48.2]} 13. Nde2 {[%clk 0:02:37.1]} 13... b5 {[%clk 0:02:48.1]} 14. Rad1
{[%clk 0:02:32.6]} 14... Qc7 {[%clk 0:02:12]} 15. Nf4 {[%clk 0:02:27.6]} 15...
bxc4 {[%clk 0:02:06.2]} 16. Ncd5 {[%clk 0:02:21.9]} 16... Nxd5 {[%clk
0:02:05.7]} 17. Nxd5 {[%clk 0:02:21.7]} 17... Qa5 {[%clk 0:01:56.6]} 18. Bd2
{[%clk 0:02:02.9]} 18... Qxa2 {[%clk 0:01:54.6]} 19. Bc3 {[%clk 0:02:01.4]}
19... Bxc3 {[%clk 0:01:54]} 20. Qxc3 {[%clk 0:02:00.5]} 20... Qxb2 {[%clk
0:01:51.4]} 21. Qxc4 {[%clk 0:01:57.3]} 21... Nb6 {[%clk 0:01:40]} 22. Nxb6
{[%clk 0:01:54.1]} 22... Rxb6 {[%clk 0:01:40.1]} 23. Qd3 {[%clk 0:01:45.6]}
23... Qf6 {[%clk 0:01:28.7]} 24. f4 {[%clk 0:01:43.4]} 24... a5 {[%clk
0:01:19.8]} 25. Rb1 {[%clk 0:01:32.4]} 25... Ba6 {[%clk 0:01:14.1]} 26. Qd2
{[%clk 0:01:22.5]} 26... Bxf1 {[%clk 0:01:09.2]} 27. Rxb6 {[%clk 0:01:22]} 27...
Bxg2 {[%clk 0:01:09.5]} 28. Rxd6 {[%clk 0:01:21]} 28... Qe7 {[%clk 0:00:59.7]}
29. Kxg2 {[%clk 0:01:17]} 29... Qxe4+ {[%clk 0:00:59.6]} 30. Kf2 {[%clk
0:01:17]} 30... Qh1 {[%clk 0:00:46.3]} 31. Rd8 {[%clk 0:01:08.7]} 31... Qh2+
{[%clk 0:00:44.5]} 32. Kf3 {[%clk 0:01:08.2]} 32... Qxd2 {[%clk 0:00:44.3]} 33.
Rxd2 {[%clk 0:01:07.4]} 33... a4 {[%clk 0:00:35.8]} 34. Ra2 {[%clk 0:01:06.2]}
34... Ra8 {[%clk 0:00:35.7]} 35. Ke4 {[%clk 0:01:06.1]} 35... a3 {[%clk
0:00:30.6]} 36. Kd5 {[%clk 0:01:05.6]} 36... Ra5 {[%clk 0:00:27.1]} 37. Kc4
{[%clk 0:01:03.9]} 37... Kg7 {[%clk 0:00:26]} 38. Kb3 {[%clk 0:01:03.7]} 38...
h5 {[%clk 0:00:23.6]} 39. g4 {[%clk 0:00:59.8]} 39... h4 {[%clk 0:00:22.4]} 40.
Kc4 {[%clk 0:00:58.3]} 40... g5 {[%clk 0:00:20.5]} 41. fxg5 {[%clk 0:00:54.8]}
41... Kg6 {[%clk 0:00:20.2]} 42. Kb3 {[%clk 0:00:53.8]} 42... Kxg5 {[%clk
0:00:20.2]} 43. Ra1 {[%clk 0:00:36.3]} 43... a2 {[%clk 0:00:19.2]} 44. Kb2
{[%clk 0:00:36.6]} 44... f6 {[%clk 0:00:16.8]} 45. Kb3 {[%clk 0:00:29.6]} 45...
Kf4 {[%clk 0:00:16.5]} 46. Kb2 {[%clk 0:00:29.5]} 46... Kg3 {[%clk 0:00:16.6]}
47. Rg1+ {[%clk 0:00:28.8]} 47... Kh2 {[%clk 0:00:16.6]} 48. Ra1 {[%clk
0:00:26.5]} 48... Kxh3 {[%clk 0:00:16.7]} 0-1

[Event "Early-Titled-Tuesday-Blitz-October-17-2023"]
[Site "Chess.com"]
[Date "2023.10.17"]
[Round "11"]
[White "nitpicker"]
[Black "C_K_G"]
[Result "1-0"]
[WhiteElo "2234"]
[BlackElo "1895"]
[TimeControl "180+1"]
[EndTime "10:09:53 PDT"]
[Termination "nitpicker won by resignation"]

1. d4 {[%clk 0:03:00.9]} 1... d5 {[%clk 0:02:59.8]} 2. c4 {[%clk 0:03:00.3]}
2... e6 {[%clk 0:03:00.3]} 3. Nf3 {[%clk 0:02:59.9]} 3... Nf6 {[%clk 0:03:00.9]}
4. g3 {[%clk 0:02:58]} 4... b6 {[%clk 0:03:00.9]} 5. Nc3 {[%clk 0:02:54.1]} 5...
Bb7 {[%clk 0:02:59.4]} 6. Bg2 {[%clk 0:02:54.4]} 6... Nbd7 {[%clk 0:02:55.3]} 7.
cxd5 {[%clk 0:02:53.5]} 7... exd5 {[%clk 0:02:55]} 8. O-O {[%clk 0:02:48.7]}
8... a6 {[%clk 0:02:51.7]} 9. Qb3 {[%clk 0:02:47.8]} 9... Be7 {[%clk 0:02:42.7]}
10. Rd1 {[%clk 0:02:44.9]} 10... O-O {[%clk 0:02:42]} 11. Ne5 {[%clk 0:02:44.8]}
11... c5 {[%clk 0:02:36]} 12. Nxd7 {[%clk 0:02:37.9]} 12... Qxd7 {[%clk
0:02:34.8]} 13. dxc5 {[%clk 0:02:35.9]} 13... Bxc5 {[%clk 0:02:34.4]} 14. Nxd5
{[%clk 0:02:13.9]} 14... Nxd5 {[%clk 0:02:33.1]} 15. Bxd5 {[%clk 0:02:12.4]}
15... Rad8 {[%clk 0:02:14.9]} 16. e4 {[%clk 0:02:02.4]} 16... Qg4 {[%clk
0:01:56.8]} 17. Be3 {[%clk 0:01:38.9]} 17... Bxd5 {[%clk 0:01:35.5]} 18. exd5
{[%clk 0:01:23.4]} 18... Bxe3 {[%clk 0:01:25.8]} 19. Qxe3 {[%clk 0:01:21.2]}
19... b5 {[%clk 0:01:25]} 20. Qd4 {[%clk 0:01:12.3]} 20... Qf5 {[%clk
0:01:16.3]} 21. d6 {[%clk 0:01:04]} 21... h5 {[%clk 0:01:15.1]} 22. h4 {[%clk
0:01:02.6]} 22... Rfe8 {[%clk 0:01:13.9]} 23. Rd2 {[%clk 0:00:56.8]} 23... Re6
{[%clk 0:01:10.8]} 24. Qb6 {[%clk 0:00:49.1]} 24... Rd7 {[%clk 0:00:56.6]} 25.
Rad1 {[%clk 0:00:45.5]} 25... Rg6 {[%clk 0:00:46.7]} 26. Qxa6 {[%clk 0:00:39.5]}
26... Kh7 {[%clk 0:00:20.9]} 27. Qc6 {[%clk 0:00:36.6]} 27... Qg4 {[%clk
0:00:17.3]} 28. Kh2 {[%clk 0:00:27]} 28... Qf5 {[%clk 0:00:14.9]} 29. Qd5 {[%clk
0:00:25.7]} 29... Qxd5 {[%clk 0:00:10.7]} 30. Rxd5 {[%clk 0:00:25]} 30... b4
{[%clk 0:00:11.6]} 31. Rxh5+ {[%clk 0:00:24.4]} 31... Kg8 {[%clk 0:00:12.3]} 32.
Rb5 {[%clk 0:00:23.8]} 32... Re6 {[%clk 0:00:11.7]} 33. Rd2 {[%clk 0:00:23.1]}
33... Re4 {[%clk 0:00:11]} 34. f3 {[%clk 0:00:21.5]} 34... Rc4 {[%clk
0:00:10.2]} 35. b3 {[%clk 0:00:20.6]} 35... Rc3 {[%clk 0:00:08.3]} 36. Kg2
{[%clk 0:00:18.5]} 36... Rc6 {[%clk 0:00:07.9]} 37. Rxb4 {[%clk 0:00:18.5]}
37... Rcxd6 {[%clk 0:00:08.3]} 38. Rxd6 {[%clk 0:00:18.3]} 38... Rxd6 {[%clk
0:00:09.2]} 39. a4 {[%clk 0:00:17.3]} 39... g6 {[%clk 0:00:08.6]} 40. g4 {[%clk
0:00:16.7]} 40... Rd2+ {[%clk 0:00:08.8]} 41. Kg3 {[%clk 0:00:16.7]} 41... Rd1
{[%clk 0:00:09]} 42. a5 {[%clk 0:00:16.6]} 42... Kg7 {[%clk 0:00:09.6]} 43. Ra4
{[%clk 0:00:16.4]} 43... Rd7 {[%clk 0:00:05.8]} 44. a6 {[%clk 0:00:16.3]} 1-0